bitfinex-derivatives/quotes_BTCF0:USTF0_20241116
["timestamp","ask_amount","ask_price","bid_price","bid_amount"]
[1731721315948,0.0315,91291.0,91284.0,0.19598848]
[1731721316255,0.0315,91291.0,91281.0,0.3608]
[1731721316256,0.08488,91290.0,91285.0,0.19598848]
[1731721316963,0.08488,91289.0,91285.0,0.19598848]
[1731721317456,0.08488,91288.0,91285.0,0.19598848]
[1731721318149,0.08488,91288.0,91286.0,0.19598848]
[1731721318457,0.08488,91288.0,91284.0,0.19598848]
[1731721319249,0.08488,91288.0,91285.0,0.19598848]
[1731721319455,0.0315,91291.0,91285.0,0.19598848]
[1731721319652,0.0315,91291.0,91289.0,0.19598848]
[1731721319653,0.08488,91290.0,91289.0,0.19598848]
[1731721320065,0.08488,91290.0,91287.0,0.19598848]
[1731721320453,0.08488,91289.0,91287.0,0.19598848]
[1731721320652,0.08488,91289.0,91283.0,0.19598848]
[1731721320950,0.08488,91289.0,91281.0,0.3659]
[1731721320951,0.13115766,91286.0,91282.0,0.19598848]
[1731721321552,0.13115766,91288.0,91284.0,0.19598848]
[1731721321756,0.13115766,91287.0,91283.0,0.19598848]
[1731721321971,0.13115766,91288.0,91284.0,0.19598848]
[1731721322461,0.13115766,91288.0,91283.0,0.19598848]
[1731721322659,0.13115766,91288.0,91284.0,0.19598848]
[1731721322858,0.13115766,91287.0,91283.0,0.19598848]
[1731721323450,0.13115766,91288.0,91283.0,0.19598848]
[1731721323852,0.13115766,91287.0,91282.0,0.19598848]
[1731721324060,0.13115766,91288.0,91281.0,0.3608]
[1731721325463,0.21603766,91289.0,91281.0,0.3608]
[1731721325961,0.08488,91288.0,91281.0,0.55678848]
[1731721326167,0.08488,91288.0,91282.0,0.19598848]
[1731721326467,0.08488,91288.0,91284.0,0.19598848]
[1731721326668,0.0315,91291.0,91284.0,0.19598848]
[1731721326857,0.08488,91290.0,91289.0,0.3608]
[1731721327763,0.13812668,91290.0,91289.0,0.3608]
[1731721329478,0.05324668,91290.0,91289.0,0.3608]
[1731721329670,0.13812668,91290.0,91289.0,0.3608]
[1731721330762,0.05324668,91290.0,91289.0,0.3608]
[1731721331171,0.16385788,91292.0,91289.0,0.7371005]
[1731721331361,0.13107897,91291.0,91290.0,0.0632]
[1731721331558,5e-05,91299.0,91290.0,0.0632]
[1731721331559,0.13107897,91294.0,91290.0,0.0632]
[1731721332275,0.13107897,91294.0,91290.0,0.0308]
[1731721332582,0.13107897,91293.0,91289.0,0.4084605]
[1731721332769,0.12449317,91295.0,91289.0,0.4084605]
[1731721332770,0.13107897,91292.0,91289.0,0.4084605]
[1731721333573,0.13107897,91293.0,91289.0,0.4084605]
[1731721334482,0.13107897,91290.0,91289.0,0.3608]
[1731721334666,0.08488,91290.0,91289.0,0.3608]
[1731721338672,0.0848,91290.0,91289.0,0.3608]
[1731721340062,0.13101967,91298.0,91289.0,0.3608]
[1731721340270,0.0848,91297.0,91289.0,0.3608]
[1731721340572,0.21581967,91297.0,91289.0,0.3608]
[1731721341168,0.13101967,91294.0,91289.0,0.3608]
[1731721341372,0.16311967,91293.0,91289.0,0.3608]
[1731721341564,0.13101967,91292.0,91289.0,0.3608]
[1731721341977,0.16281967,91291.0,91289.0,0.3608]
[1731721342568,0.13101967,91290.0,91289.0,0.3608]
[1731721342768,0.19681801,91290.0,91289.0,0.3608]
[1731721343369,0.05324704,91290.0,91289.0,0.3608]
[1731721345076,0.05324725,91290.0,91289.0,0.3608]
[1731721345674,0.05324725,91290.0,91278.0,0.0051]
[1731721345881,0.12449317,91282.0,91272.0,0.3659]
[1731721346178,0.16407405,91276.0,91272.0,0.40809731]
[1731721346777,0.32137802,91274.0,91272.0,0.3608]
[1731721346977,0.08575146,91273.0,91272.0,0.3608]
[1731721347273,0.11825146,91273.0,91272.0,0.3608]
[1731721347670,0.08575146,91273.0,91272.0,0.3608]
[1731721347874,0.19683001,91273.0,91272.0,0.3608]
[1731721348181,0.28166963,91273.0,91272.0,0.3608]
[1731721348385,0.13809146,91273.0,91272.0,0.3608]
[1731721349880,0.24880984,91273.0,91272.0,0.3608]
[1731721350475,0.08484,91273.0,91272.0,0.3608]
[1731721350979,0.08484,91273.0,91272.0,0.62190816]
[1731721351679,0.08484,91273.0,91272.0,0.3608]
[1731721351878,0.08484,91273.0,91272.0,0.62190816]
[1731721352178,0.08484,91273.0,91272.0,0.3608]
[1731721354472,0.08484,91273.0,91272.0,0.62190816]
[1731721354874,0.08484,91273.0,91272.0,0.3608]
[1731721355274,0.1311627,91289.0,91272.0,0.7216]
[1731721355569,0.08484,91289.0,91283.0,0.3608]
[1731721355775,0.22726984,91298.0,91283.0,0.3608]
[1731721355776,0.1311627,91294.0,91283.0,0.3608]
[1731721355974,0.08484,91294.0,91283.0,0.55659051]
[1731721356175,0.08484,91294.0,91285.0,0.19579051]
[1731721356379,0.08484,91294.0,91288.0,0.19579051]
[1731721356583,0.08484,91294.0,91290.0,0.19579051]
[1731721359580,0.08484,91294.0,91293.0,0.3608]
[1731721360181,0.08484,91294.0,91293.0,0.55659051]
[1731721360376,0.08484,91294.0,91293.0,0.3608]
[1731721360681,0.08484,91294.0,91293.0,0.55651275]
[1731721360876,0.08484,91294.0,91293.0,0.3608]
[1731721364188,0.08484,91294.0,91284.0,0.19571275]
[1731721364388,0.12449317,91287.0,91282.0,0.19571275]
[1731721364689,0.12449317,91287.0,91281.0,0.19571275]
[1731721365285,0.12449317,91287.0,91280.0,0.19571275]
[1731721365788,0.19682963,91283.0,91275.0,0.40864276]
[1731721365984,0.1639151,91276.0,91275.0,0.40740276]
[1731721368991,0.1639151,91276.0,91275.0,0.3608]
[1731721369286,0.05325106,91276.0,91275.0,0.3608]
[1731721370286,0.05325106,91278.0,91275.0,0.3608]
[1731721372783,0.12449317,91279.0,91275.0,0.3608]
[1731721373096,0.12449317,91279.0,91278.0,0.26103462]
[1731721373786,0.12449317,91279.0,91277.0,0.26103462]
[1731721374193,0.12449317,91279.0,91277.0,0.62183462]
[1731721375094,0.12449317,91279.0,91278.0,0.26103462]
[1731721375999,0.12449317,91279.0,91277.0,0.3608]
[1731721377590,0.12449317,91279.0,91277.0,0.62183462]
[1731721378399,0.12449317,91279.0,91277.0,0.3608]
[1731721378701,0.12449317,91279.0,91277.0,0.62183462]
[1731721378994,0.12449317,91279.0,91277.0,0.3608]
[1731721380785,0.16395229,91278.0,91277.0,0.3608]
[1731721382496,0.16395229,91278.0,91269.0,0.00012885]
[1731721382497,0.05325151,91278.0,91269.0,0.00012885]
[1731721382692,0.16401746,91274.0,91269.0,0.00012885]
[1731721382996,0.16401746,91273.0,91269.0,0.00012885]
[1731721385385,0.16401746,91274.0,91269.0,0.00012885]
[1731721385587,0.12449317,91279.0,91269.0,0.00012885]
[1731721385588,0.16401746,91273.0,91269.0,0.00012885]
[1731721387394,0.16401746,91274.0,91269.0,0.00012885]
[1731721387598,0.16401746,91272.0,91269.0,0.00012885]
[1731721387796,0.17080924,91279.0,91269.0,0.00012885]
[1731721387797,0.0848,91271.0,91269.0,0.00012885]
[1731721390291,0.0848,91271.0,91270.0,0.19573502]
[1731721390493,0.0848,91271.0,91269.0,0.00012885]
[1731721392004,0.0848,91270.0,91269.0,0.00012885]
[1731721392399,0.0848,91270.0,91269.0,0.26116347]
[1731721393109,0.0848,91270.0,91269.0,0.00012885]
[1731721395604,0.0848,91270.0,91269.0,0.26138251]
[1731721395798,0.13805653,91270.0,91269.0,0.00012885]
[1731721402412,0.16414821,91270.0,91269.0,0.00012885]
[1731721402709,0.16414821,91275.0,91269.0,0.32880885]
[1731721402916,0.08472,91283.0,91273.0,0.32573893]
[1731721403209,0.13131242,91285.0,91280.0,0.62204802]
[1731721403407,0.08472,91285.0,91284.0,0.19594528]
[1731721403907,0.08472,91285.0,91283.0,0.19594528]
[1731721403908,0.13131242,91285.0,91283.0,0.19594528]
[1731721404214,0.21603242,91285.0,91283.0,0.19594528]
[1731721404409,0.08472,91285.0,91284.0,0.19594528]
[1731721404713,0.08472,91285.0,91281.0,0.26124802]
[1731721405110,0.08472,91285.0,91280.0,0.62204802]
[1731721405308,0.08472,91285.0,91281.0,0.26124802]
[1731721405910,0.08472,91285.0,91284.0,0.19587128]
[1731721406903,0.08472,91285.0,91283.0,0.19587128]
[1731721407411,0.08472,91285.0,91280.0,0.3608]
[1731721407412,0.08472,91285.0,91284.0,0.19587128]
[1731721407608,0.08472,91285.0,91280.0,0.62204802]
[1731721407809,0.08472,91285.0,91281.0,0.26124802]
[1731721408014,0.08472,91285.0,91283.0,0.26124802]
[1731721408719,0.08472,91285.0,91284.0,0.26124802]
[1731721409111,0.08472,91285.0,91281.0,0.0331]
[1731721409306,0.85412564,91296.0,91281.0,0.0331]
[1731721409307,0.13131242,91294.0,91282.0,0.0315]
[1731721409507,0.08472,91293.0,91289.0,0.19570442]
[1731721409818,0.08472,91292.0,91290.0,0.19570442]
[1731721410120,0.08472,91292.0,91288.0,0.3608]
[1731721410315,0.13131242,91298.0,91289.0,0.26093923]
[1731721410521,0.08477,91299.0,91288.0,0.3608]
[1731721410522,0.08477,91299.0,91297.0,0.3608]
[1731721410721,0.08477,91299.0,91297.0,0.55647726]
[1731721410916,0.08477,91299.0,91297.0,0.3608]
[1731721410917,0.21608242,91299.0,91297.0,0.3608]
[1731721411313,0.08477,91299.0,91297.0,0.3608]
[1731721411711,5e-05,91299.0,91297.0,0.3608]
[1731721412216,5e-05,91299.0,91298.0,0.0652]
[1731721415819,5e-05,91299.0,91298.0,0.0325]
[1731721416222,5e-05,91299.0,91297.0,0.3608]
[1731721417025,0.08165156,91298.0,91297.0,0.3608]
[1731721421030,5e-05,91299.0,91297.0,0.3608]
[1731721422228,0.08165156,91298.0,91297.0,0.3608]
[1731721428529,0.08170156,91299.0,91297.0,0.3608]
[1731721429131,5e-05,91299.0,91297.0,0.3608]
[1731721429435,5e-05,91299.0,91297.0,0.55602583]
[1731721430430,5e-05,91299.0,91298.0,0.19522583]
[1731721432434,5e-05,91299.0,91297.0,0.3608]
[1731721434431,5e-05,91299.0,91297.0,0.55624884]
[1731721435426,5e-05,91299.0,91298.0,0.19544884]
[1731721436034,5e-05,91299.0,91297.0,0.55624884]
[1731721436340,5e-05,91299.0,91298.0,0.19544884]
[1731721437429,5e-05,91299.0,91297.0,0.3608]
[1731721438335,5e-05,91299.0,91297.0,0.62110111]
[1731721439339,5e-05,91299.0,91298.0,0.26030111]
[1731721440040,5e-05,91299.0,91297.0,0.3608]
[1731721440540,0.13094585,91299.0,91297.0,0.3608]
[1731721441044,0.19535182,91298.0,91297.0,0.3608]
[1731721441346,0.14211404,91298.0,91297.0,0.3608]
[1731721443137,0.19545355,91299.0,91297.0,0.3608]
[1731721443337,0.19540355,91298.0,91297.0,0.3608]
[1731721444044,0.14216577,91298.0,91297.0,0.3608]
[1731721446445,0.22381733,91298.0,91297.0,0.3608]
[1731721446745,0.27705511,91298.0,91297.0,0.3608]
[1731721447641,0.13488906,91298.0,91297.0,0.3608]
[1731721447837,0.08165156,91298.0,91297.0,0.3608]
[1731721448137,0.08165156,91298.0,91297.0,0.68445613]
[1731721448337,5e-05,91299.0,91297.0,0.68445613]
[1731721448543,5e-05,91299.0,91298.0,0.65026408]
[1731721449144,5e-05,91299.0,91298.0,0.65025318]
[1731721450543,5e-05,91299.0,91298.0,0.32659705]
[1731721451246,5e-05,91299.0,91297.0,0.3608]
[1731721451247,5e-05,91299.0,91297.0,0.68739705]
[1731721451747,5e-05,91299.0,91298.0,0.32659705]
[1731721451953,5e-05,91299.0,91298.0,0.32380862]
[1731721452646,5e-05,91299.0,91298.0,0.65022219]
[1731721452854,5e-05,91299.0,91298.0,0.32368144]
[1731721453354,5e-05,91299.0,91298.0,0.65020827]
[1731721453939,5e-05,91299.0,91298.0,0.32652683]
[1731721454149,5e-05,91299.0,91298.0,0.65022296]
[1731721454444,5e-05,91299.0,91298.0,0.32368636]
[1731721454854,5e-05,91299.0,91298.0,0.73393792]
[1731721455038,5e-05,91299.0,91298.0,0.41025156]
[1731721455846,0.05328401,91299.0,91298.0,0.41025156]
[1731721456047,5e-05,91299.0,91298.0,0.41025156]
[1731721456248,0.16422142,91299.0,91298.0,0.41025156]
[1731721456753,5e-05,91299.0,91298.0,0.08165156]
[1731721461653,5e-05,91299.0,91298.0,0.11275156]
[1731721462243,0.13130563,91299.0,91298.0,0.11275156]
[1731721462462,5e-05,91299.0,91298.0,0.11275156]
[1731721463255,5e-05,91299.0,91298.0,0.43612736]
[1731721464456,5e-05,91299.0,91298.0,0.82657903]
[1731721464845,5e-05,91299.0,91298.0,0.76472736]
[1731721465245,5e-05,91299.0,91298.0,1.07428851]
[1731721465447,0.13125516,91318.0,91298.0,0.9830758]
[1731721465756,0.065,91323.0,91317.0,0.80325156]
[1731721465955,0.065,91323.0,91319.0,0.32597319]
[1731721466152,0.065,91323.0,91322.0,0.26055043]
[1731721467259,0.065,91323.0,91321.0,0.26055043]
[1731721468257,0.065,91323.0,91317.0,0.80453156]
[1731721468258,0.065,91323.0,91319.0,0.26055043]
[1731721468946,0.065,91323.0,91320.0,0.26055043]
[1731721469149,0.065,91323.0,91319.0,0.26055043]
[1731721470256,0.065,91323.0,91317.0,0.85145591]
[1731721470257,0.22917142,91323.0,91317.0,0.85145591]
[1731721470452,0.22917142,91323.0,91317.0,0.85025591]
[1731721471155,0.065,91323.0,91317.0,0.85025591]
[1731721472956,0.08165156,91318.0,91317.0,0.76860435]
[1731721473757,0.13487703,91318.0,91317.0,0.76860435]
[1731721474355,0.13487703,91318.0,91317.0,0.7216]
[1731721475366,0.13487724,91318.0,91317.0,0.7216]
[1731721476450,0.13487724,91318.0,91317.0,0.13083466]
[1731721477156,0.13487724,91318.0,91306.0,0.0051]
[1731721477157,0.2787804,91318.0,91306.0,0.0051]
[1731721477464,0.24538945,91312.0,91303.0,0.3608]
[1731721477657,0.13099346,91304.0,91303.0,0.40830856]
[1731721478359,0.0312,91311.0,91303.0,0.66885899]
[1731721478555,0.065,91323.0,91310.0,0.08165156]
[1731721478756,0.065,91323.0,91322.0,0.3608]
[1731721479460,0.032,91323.0,91322.0,0.44245156]
[1731721479662,0.0303,91333.0,91322.0,0.70270381]
[1731721479859,0.0623,91333.0,91330.0,0.3608]
[1731721480460,0.0623,91333.0,91330.0,0.55598948]
[1731721480764,0.0623,91333.0,91330.0,0.3608]
[1731721481769,0.0623,91333.0,91330.0,0.55598948]
[1731721482265,0.0623,91333.0,91330.0,0.3608]
[1731721483958,0.0623,91333.0,91330.0,0.55598948]
[1731721484261,0.0623,91333.0,91330.0,0.3608]
[1731721484464,0.032,91333.0,91330.0,0.3608]
[1731721484762,0.0662,91346.0,91331.0,0.000136]
[1731721485066,0.0662,91346.0,91344.0,0.44245156]
[1731721485264,0.0532096,91345.0,91344.0,0.44245156]
[1731721485862,0.1636313,91345.0,91344.0,0.44245156]
[1731721486363,0.0662,91346.0,91344.0,0.44245156]
[1731721486364,0.0329,91346.0,91344.0,0.44245156]
[1731721486567,0.0329,91346.0,91345.0,0.3608]
[1731721490463,5e-05,91350.0,91345.0,0.68924]
[1731721490669,5e-05,91350.0,91349.0,0.08165156]
[1731721491862,5e-05,91350.0,91345.0,0.3608]
[1731721492073,5e-05,91350.0,91349.0,0.08165156]
[1731721493868,5e-05,91350.0,91345.0,0.3608]
[1731721494158,0.00826031,91349.0,91345.0,0.3608]
[1731721494362,5e-05,91350.0,91345.0,0.3608]
[1731721494363,0.00826031,91348.0,91345.0,0.3608]
[1731721494568,5e-05,91350.0,91345.0,0.3608]
[1731721494772,0.0083567,91349.0,91345.0,0.3608]
[1731721494967,0.0083567,91348.0,91345.0,0.3608]
[1731721495171,5e-05,91350.0,91345.0,0.3608]
[1731721495369,0.00837508,91349.0,91345.0,0.3608]
[1731721495570,0.00837508,91348.0,91345.0,0.3608]
[1731721495773,5e-05,91350.0,91345.0,0.3608]
[1731721495970,5e-05,91350.0,91349.0,0.08165156]
[1731721496174,0.00842464,91350.0,91349.0,0.08165156]
[1731721497176,5e-05,91350.0,91349.0,0.08165156]
[1731721498868,5e-05,91350.0,91345.0,0.3608]
[1731721499167,5e-05,91350.0,91347.0,0.08165156]
[1731721501384,5e-05,91350.0,91345.0,0.3608]
[1731721506283,5e-05,91350.0,91349.0,0.3608]
[1731721508576,0.06475,91350.0,91349.0,0.3608]
[1731721508786,0.11795628,91350.0,91349.0,0.3608]
[1731721509490,0.12647343,91350.0,91349.0,0.3608]
[1731721509678,0.11795628,91350.0,91349.0,0.3608]
[1731721510277,0.29252542,91350.0,91344.0,0.04795776]
[1731721510480,0.19712884,91347.0,91341.0,0.3608]
[1731721510674,0.19712884,91347.0,91333.0,0.3608]
[1731721510675,0.42252386,91346.0,91333.0,0.3608]
[1731721510871,0.13101435,91335.0,91333.0,0.3608]
[1731721511177,0.06172386,91345.0,91333.0,0.3608]
[1731721511178,0.16376784,91336.0,91333.0,0.40902236]
[1731721512273,0.16376784,91335.0,91333.0,0.40902236]
[1731721513283,0.16376784,91334.0,91333.0,0.40902236]
[1731721513578,0.16376784,91335.0,91333.0,0.40902236]
[1731721513983,0.00842912,91334.0,91333.0,0.40902236]
[1731721514185,0.16376784,91334.0,91333.0,0.40902236]
[1731721514376,0.17221248,91334.0,91333.0,0.40902236]
[1731721515485,0.00844464,91334.0,91333.0,0.73696214]
[1731721517887,0.0084245,91334.0,91333.0,0.73696214]
[1731721518191,0.0084245,91334.0,91333.0,0.40902236]
[1731721519375,0.0314,91340.0,91333.0,0.40902236]
[1731721519587,0.0314,91340.0,91337.0,0.26041009]
[1731721519784,0.0844,91339.0,91337.0,0.26041009]
[1731721520485,0.08165156,91338.0,91337.0,0.26041009]
[1731721520891,0.44245156,91338.0,91335.0,0.26041009]
[1731721521080,0.44245156,91338.0,91335.0,0.19526126]
[1731721521281,0.44245156,91338.0,91333.0,0.19526126]
[1731721521486,0.08165156,91334.0,91331.0,0.000136]
[1731721521698,0.0627,91333.0,91331.0,0.000136]
[1731721523692,0.3608,91332.0,91331.0,0.000136]
[1731721524490,0.44245156,91332.0,91331.0,0.000136]
[1731721524788,0.77093156,91332.0,91317.0,0.0051]
[1731721524988,0.77093156,91332.0,91312.0,0.19526126]
[1731721524989,0.44245156,91321.0,91312.0,0.19526126]
[1731721525192,0.08165156,91314.0,91312.0,0.04702238]
[1731721525381,0.08165156,91314.0,91310.0,0.19526126]
[1731721525581,0.08165156,91314.0,91309.0,0.19526126]
[1731721525789,0.0001027,91313.0,91309.0,0.19526126]
[1731721526383,0.0635027,91313.0,91308.0,0.19526126]
[1731721526594,0.08165156,91309.0,91306.0,0.19526126]
[1731721526796,0.0635027,91313.0,91306.0,0.19526126]
[1731721527492,0.0635027,91313.0,91305.0,0.60308364]
[1731721527893,0.0318,91312.0,91305.0,0.60308364]
[1731721528296,0.0318,91312.0,91306.0,0.19526126]
[1731721528498,0.0318,91312.0,91305.0,0.24228364]
[1731721529591,0.0318,91312.0,91305.0,0.04702238]
[1731721529786,0.0318,91312.0,91304.0,0.55734126]
[1731721529997,0.0318,91312.0,91304.0,0.55606126]
[1731721530587,0.0318,91312.0,91304.0,0.3608]
[1731721531102,0.0318,91312.0,91304.0,0.40905648]
[1731721535100,0.12438051,91308.0,91300.0,0.00013944]
[1731721535304,0.08432,91307.0,91300.0,0.00013944]
[1731721536298,0.3608,91301.0,91300.0,0.00013944]
[1731721536803,0.48518051,91301.0,91300.0,0.00013944]
[1731721537206,0.56950051,91301.0,91300.0,0.00013944]
[1731721540512,0.56954051,91301.0,91300.0,0.00013944]
[1731721545298,0.57787199,91301.0,91300.0,0.00013944]
[1731721545701,0.57789561,91301.0,91300.0,0.00013944]
[1731721546802,0.53516698,91301.0,91300.0,0.00013944]
[1731721547097,0.52681188,91301.0,91300.0,0.00013944]
[1731721547304,0.53515503,91301.0,91300.0,0.00013944]
[1731721548111,0.53514652,91301.0,91300.0,0.00013944]
[1731721548606,0.17434652,91301.0,91300.0,0.00013944]
[1731721548809,0.53514652,91301.0,91300.0,0.00013944]
[1731721549614,0.52681188,91301.0,91300.0,0.00013944]
[1731721554407,0.53515989,91301.0,91300.0,0.00013944]
[1731721558314,0.61681177,91301.0,91300.0,0.00013944]
[1731721558905,0.61685286,91301.0,91300.0,0.00013944]
[1731721560320,0.6663281,91301.0,91300.0,0.00013944]
[1731721560617,0.58844526,91301.0,91300.0,0.00013944]
[1731721561116,0.58005616,91301.0,91300.0,0.00013944]
[1731721561305,0.58843428,91301.0,91300.0,0.00013944]
[1731721561917,0.67008616,91301.0,91300.0,0.00013944]
[1731721562421,0.58843428,91301.0,91300.0,0.00013944]
[1731721562617,0.53519,91301.0,91300.0,0.00013944]
[1731721562916,0.94544188,91301.0,91287.0,0.0051]
[1731721563113,0.3608,91288.0,91277.0,0.0051]
[1731721563314,0.08165188,91281.0,91274.0,0.0301]
[1731721563713,0.08165188,91275.0,91274.0,0.0301]
[1731721564113,0.21292267,91275.0,91274.0,0.0301]
[1731721564313,0.08165188,91275.0,91274.0,0.0301]
[1731721564516,0.08165188,91275.0,91274.0,0.22584406]
[1731721564815,0.13957612,91275.0,91274.0,0.22584406]
[1731721565213,0.13957612,91275.0,91274.0,0.0301]
[1731721565413,0.00828453,91275.0,91274.0,0.0301]
[1731721565617,0.13129159,91275.0,91274.0,0.0301]
[1731721565917,0.16593188,91275.0,91274.0,0.0301]
[1731721566117,0.16593188,91275.0,91264.0,0.19574406]
[1731721566317,0.16593188,91275.0,91260.0,0.26111867]
[1731721566318,0.08165188,91265.0,91263.0,0.19670406]
[1731721566521,0.13126362,91264.0,91263.0,0.00096]
[1731721566720,0.13958933,91264.0,91263.0,0.00096]
[1731721567016,0.08996618,91264.0,91263.0,0.00096]
[1731721567220,0.08176414,91264.0,91263.0,0.00096]
[1731721567410,0.08176414,91264.0,91261.0,0.07980727]
[1731721567411,0.25600714,91264.0,91260.0,0.00012658]
[1731721567609,0.3608,91261.0,91260.0,0.00012658]
[1731721567812,0.36911112,91261.0,91260.0,0.00012658]
[1731721568219,0.36911112,91261.0,91258.0,0.19575822]
[1731721568220,0.779483,91261.0,91252.0,0.19575822]
[1731721568427,0.52410376,91253.0,91241.0,0.19575822]
[1731721568622,0.08428,91252.0,91241.0,0.19575822]
[1731721568809,0.08428,91252.0,91239.0,0.19575822]
[1731721568810,0.08165188,91242.0,91239.0,0.19575822]
[1731721569016,0.08428,91241.0,91239.0,0.19575822]
[1731721569216,0.08428,91241.0,91238.0,0.19575822]
[1731721569717,0.08165188,91239.0,91238.0,0.19575822]
[1731721570121,0.08165188,91239.0,91236.0,0.0304]
[1731721571016,0.08428,91241.0,91236.0,0.0304]
[1731721571017,0.20886338,91241.0,91236.0,0.0304]
[1731721571222,0.56966338,91241.0,91230.0,0.19575822]
[1731721571416,0.3608,91231.0,91230.0,0.19575822]
[1731721571716,0.3608,91231.0,91229.0,0.061]
[1731721572025,0.3608,91231.0,91223.0,0.0318]
[1731721572026,0.08432,91230.0,91223.0,0.22755822]
[1731721572225,0.08432,91230.0,91223.0,0.07780957]
[1731721572425,0.08432,91230.0,91223.0,0.0318]
[1731721572620,0.12458338,91226.0,91223.0,0.0318]
[1731721574329,0.08432,91230.0,91223.0,0.0318]
[1731721574521,0.12458338,91224.0,91223.0,0.0318]
[1731721577118,0.12458338,91224.0,91220.0,7.742e-05]
[1731721577322,0.3608,91222.0,91220.0,7.742e-05]
[1731721578628,0.00010534,91221.0,91220.0,7.742e-05]
[1731721585032,0.00010534,91221.0,91205.0,0.0328]
[1731721585033,0.09290534,91221.0,91205.0,0.0328]
[1731721585229,0.48538338,91206.0,91205.0,0.0328]
[1731721585433,0.56966338,91206.0,91205.0,0.0328]
[1731721585929,0.56966338,91206.0,91193.0,0.0629]
[1731721586129,0.56966338,91206.0,91194.0,0.032]
[1731721586536,0.69424676,91206.0,91195.0,0.04669498]
[1731721586734,0.61766932,91206.0,91195.0,0.04669498]
[1731721587029,0.7422527,91206.0,91195.0,0.04669498]
[1731721587238,0.61766932,91206.0,91194.0,0.032]
[1731721588030,0.12458338,91201.0,91194.0,0.032]
[1731721589637,0.49368595,91206.0,91194.0,0.032]
[1731721589839,0.12458338,91201.0,91194.0,0.032]
[1731721590928,0.49364595,91206.0,91194.0,0.032]
[1731721591130,0.12458338,91203.0,91194.0,0.032]
[1731721594130,0.32896,91202.0,91188.0,0.3608]
[1731721594532,0.12458338,91203.0,91185.0,0.0308]
[1731721594533,0.32896,91201.0,91185.0,0.0308]
[1731721594843,0.3608,91201.0,91185.0,0.0308]
[1731721595039,0.12458338,91186.0,91185.0,0.0308]
[1731721595242,0.20886338,91186.0,91185.0,0.0308]
[1731721599433,0.20886338,91186.0,91172.0,0.3608]
[1731721599634,0.20886338,91186.0,91173.0,0.0328]
[1731721600334,0.12458338,91186.0,91173.0,0.0328]
[1731721600534,0.08428,91185.0,91173.0,0.0328]
[1731721601338,0.21549559,91185.0,91173.0,0.0328]
[1731721601841,0.1394408,91184.0,91173.0,0.0328]
[1731721602742,0.13957424,91184.0,91173.0,0.0328]
[1731721602947,0.13957424,91184.0,91178.0,0.04807035]
[1731721603136,0.00835865,91184.0,91178.0,0.04807035]
[1731721603332,0.09263865,91184.0,91178.0,0.04807035]
[1731721604038,0.09263865,91184.0,91173.0,0.0328]
[1731721604434,0.09263865,91184.0,91183.0,1.427e-05]
[1731721604435,0.14595013,91184.0,91183.0,1.427e-05]
[1731721605738,0.09263865,91184.0,91183.0,1.427e-05]
[1731721605943,0.21722203,91184.0,91183.0,1.427e-05]
[1731721607047,0.09263865,91184.0,91183.0,1.427e-05]
[1731721607344,0.09263865,91184.0,91165.0,0.0051]
[1731721607345,0.54622203,91184.0,91165.0,0.0051]
[1731721607551,0.54622203,91184.0,91162.0,0.22655822]
[1731721607552,0.12458338,91167.0,91162.0,0.0308]
[1731721607848,0.08432,91166.0,91162.0,0.0308]
[1731721608144,0.00829167,91165.0,91162.0,0.0308]
[1731721608450,0.00829167,91164.0,91162.0,0.0308]
[1731721608638,0.08432,91166.0,91162.0,0.0308]
[1731721608639,0.00829167,91163.0,91162.0,0.0308]
[1731721608846,0.08432,91166.0,91162.0,0.0308]
[1731721610942,0.00827596,91165.0,91162.0,0.0308]
[1731721611150,0.08432,91166.0,91162.0,0.0308]
[1731721611338,0.08432,91166.0,91152.0,0.0312]
[1731721611540,0.12458338,91159.0,91152.0,0.0312]
[1731721612943,0.12458338,91159.0,91152.0,0.07818115]
[1731721613143,0.08432,91166.0,91152.0,0.07818115]
[1731721613144,0.12458338,91166.0,91152.0,0.07818115]
[1731721613345,0.00839958,91165.0,91152.0,0.07818115]
[1731721613547,0.08424,91165.0,91152.0,0.07818115]
[1731721613742,0.3608,91170.0,91152.0,0.07818115]
[1731721613941,0.09264075,91169.0,91153.0,0.19575822]
[1731721614143,0.00840075,91168.0,91155.0,0.19575822]
[1731721614342,0.12458338,91167.0,91155.0,0.19575822]
[1731721614544,0.12458338,91167.0,91162.0,0.19575822]
[1731721614545,0.09264075,91166.0,91162.0,0.19575822]
[1731721614749,0.09264075,91166.0,91161.0,0.19575822]
[1731721614750,0.00840075,91165.0,91161.0,0.19575822]
[1731721614944,0.00840075,91165.0,91160.0,0.19575822]
[1731721615146,0.00840075,91165.0,91162.0,0.19575822]
[1731721615748,0.00840075,91165.0,91152.0,0.07818115]
[1731721615749,0.00840075,91165.0,91154.0,0.19575822]
[1731721615943,0.00840075,91165.0,91153.0,0.19575822]
[1731721615944,0.12458338,91159.0,91153.0,0.19575822]
[1731721616145,0.12458338,91159.0,91154.0,0.19575822]
[1731721616457,0.12458338,91159.0,91155.0,0.19575822]
[1731721616656,0.12458338,91159.0,91154.0,0.19575822]
[1731721616953,0.00843226,91158.0,91155.0,0.19575822]
[1731721617156,0.00843226,91157.0,91155.0,0.19575822]
[1731721617345,0.12458338,91159.0,91154.0,0.19575822]
[1731721617655,0.00842065,91158.0,91154.0,0.19575822]
[1731721617847,0.00842065,91157.0,91154.0,0.19575822]
[1731721618157,0.20882338,91166.0,91156.0,0.19575822]
[1731721618453,0.00841149,91165.0,91156.0,0.19575822]
[1731721618754,0.20882338,91166.0,91156.0,0.19575822]
[1731721618755,0.00841149,91164.0,91156.0,0.19575822]
[1731721618958,0.00841149,91163.0,91156.0,0.19575822]
[1731721619157,0.00841149,91162.0,91156.0,0.19575822]
[1731721619349,0.00841149,91161.0,91156.0,0.19575822]
[1731721619545,0.20882338,91166.0,91157.0,0.19575822]
[1731721619546,0.00841149,91160.0,91157.0,0.19575822]
[1731721619758,0.3608,91170.0,91157.0,0.19575822]
[1731721619759,0.00841149,91159.0,91157.0,0.19575822]
[1731721619950,0.08424,91165.0,91152.0,0.33917324]
[1731721619951,0.08424,91165.0,91156.0,0.19575822]
[1731721620155,0.00837546,91164.0,91156.0,0.19575822]
[1731721620346,0.00837546,91163.0,91156.0,0.19575822]
[1731721620657,0.00837546,91162.0,91159.0,0.3608]
[1731721620951,0.13106518,91171.0,91159.0,0.3608]